[Event "Norwegian Team Championship 2019"]
[Site "Drammen"]
[Date "2019.05.31"]
[Round "2.20"]
[White "Sorgjerd, Jan"]
[Black "Unneland, Arne"]
[Result "0-1"]
[ECO "D02"]
[WhiteElo "2050"]
[BlackElo "1658"]
[Annotator "NA"]
[PlyCount "76"]
[EventDate "2019.05.30"]
[EventType "swiss"]
[EventCountry "NOR"]
[SourceTitle "playchess.com"]
[Source "ChessBase"]
[SourceQuality "1"]
[TimeControl "40/5400:1800"]

1. d4 {[%emt 0:00:01]} d5 {[%emt 0:00:06]} 2. Nf3 {[%emt 0:00:11]} Nf6 {[%emt 0:00:09]} 3. g3 {[%emt 0:00:58]} Nc6 {[%emt 0:00:25]} 4. Bg2 {[%emt 0:00:26]} Bg4 {[%emt 0:01:30]} 5. Nbd2 {[%emt 0:00:40]} h6 {[%emt 0:02:13]} 6. h3 {[%emt 0:00:22]} Bf5 {[%emt 0:00:31]} 7. O-O {[%emt 0:03:49]} Qd7 {[%emt 0:03:40]} 8. Kh2 {[%emt 0:00:18]} e6 {[%emt 0:01:43]} 9. c3 {[%emt 0:03:20]} Bd6 {[%emt 0:00:44]} 10. b4 {[%emt 0:04:59]} g5 {[%emt 0:01:26]} 11. a4 {[%emt 0:21:13]} g4 {[%emt 0:02:35]} 12. hxg4 {[%emt 0:10:50]} Nxg4+ {[%emt 0:02:19]} 13. Kg1 {[%emt 0:00:15]} O-O-O {[%emt 0:00:35]} 14. a5 {[%emt 0:09:53]} Rdg8 {[%emt 0:06:52]} 15. b5 {[%emt 0:02:55]} Ne7 {[%emt 0:00:46]} 16. Qb3 {[%emt 0:03:01]} Bxg3 {[%emt 0:06:59]} 17. c4 {[%emt 0:12:16]} Bf4 {[%emt 0:16:27]} 18. e3 {[%emt 0:00:50]} Bg5 {[%emt 0:03:06]} 19. Ba3 {[%emt 0:01:04]} Be4 {[%emt 0:01:31]} 20. Rfc1 {[%emt 0:01:17]} Nf5 {[%emt 0:02:37]} 21. Rc3 {[%emt 0:01:23]} h5 {[%emt 0:06:30]} 22. Kf1 {[%emt 0:01:54]} Nh4 {[%emt 0:03:13]} 23. Nxh4 {[%emt 0:00:44]} Nh2+ {[%emt 0:00:56]} 24. Ke2 {[%emt 0:01:12]} Bxh4 {[%emt 0:00:20]} 25. Bxe4 {[%emt 0:00:12]} dxe4 {[%emt 0:00:32]} 26. Nxe4 {[%emt 0:00:48]} f5 {[%emt 0:00:23]} 27. Nc5 {[%emt 0:01:10]} Qg7 {[%emt 0:01:07]} 28. b6 {[%emt 0:00:48]} axb6 {[%emt 0:06:32]} 29. Qb5 {[%emt 0:00:08]} bxc5 {[%emt 0:00:51]} 30. a6 {[%emt 0:00:44]} Qg4+ {[%emt 0:00:05]} 31. Kd2 {[%emt 0:00:27]} Nf3+ {[%emt 0:00:09]} 32. Kc2 {[%emt 0:00:01]} Qe4+ {[%emt 0:00:34]} 33. Kb2 {[%emt 0:00:07]} bxa6 $19 {[%emt 0:00:09]} 34. Qxc5 {[%emt 0:00:04]} Rg2 {[%emt 0:00:44]} 35. Rb1 {[%emt 0:01:00]} Nd2 {[%emt 0:00:28]} 36. Rbc1 {[%emt 0:00:20]} Rxf2 {[%emt 0:00:31]} 37. R1c2 {[%emt 0:00:01]} Qb7+ {[%emt 0:00:48]} 38. Ka2 {[%emt 0:00:04]} Qb1# {[%emt 0:00:15]} 0-1

[Event "Norwegian Team Championship 2019"]
[Site "Drammen"]
[Date "2019.06.01"]
[Round "3.2"]
[White "Mihajlov, Sebastian"]
[Black "Hauge, Lars Oskar"]
[Result "1/2-1/2"]
[ECO "B44"]
[WhiteElo "2371"]
[BlackElo "2470"]
[Annotator "ChessBase"]
[PlyCount "180"]
[EventDate "2019.05.30"]
[EventType "swiss"]
[EventCountry "NOR"]
[SourceTitle "playchess.com"]
[Source "ChessBase"]
[SourceQuality "1"]
[TimeControl "40/5400:1800"]

1. e4 {[%emt 0:01:26]} c5 {[%emt 0:02:46]} 2. Nf3 {[%emt 0:00:00]} e6 {[%emt 0:00:50]} 3. d4 {[%emt 0:00:00]} cxd4 {[%emt 0:00:07]} 4. Nxd4 {[%emt 0:00:03]} a6 {[%emt 0:03:34]} 5. c4 {[%emt 0:00:04]} Nf6 {[%emt 0:00:56]} 6. Nc3 {[%emt 0:00:17]} Qc7 {[%emt 0:00:06]} 7. a3 {[%emt 0:00:03]} Be7 {[%emt 0:02:07]} 8. Be3 {[%emt 0:00:18]} d6 {[%emt 0:00:37]} 9. Be2 {[%emt 0:00:07]} Nbd7 {[%emt 0:00:43]} 10. O-O {[%emt 0:00:49]} b6 {[%emt 0:01:05]} 11. Rc1 {[%emt 0:01:48]} Bb7 {[%emt 0:02:36]} 12. f3 {[%emt 0:00:10]} O-O {[%emt 0:00:47]} 13. b4 {[%emt 0:03:07]} Rac8 {[%emt 0:00:43]} 14. Qd2 {[%emt 0:05:58]} Qb8 {[%emt 0:00:19]} 15. Rfd1 {[%emt 0:00:08]} Rfe8 {[%emt 0:03:22]} 16. Nb3 {[%emt 0:06:03]} Bd8 {[%emt 0:10:40]} 17. Kh1 {[%emt 0:19:05]} Bc7 {[%emt 0:02:27]} 18. Bf4 {[%emt 0:04:58]} Ne5 {[%emt 0:04:12]} 19. Bxe5 {[%emt 0:02:07]} dxe5 {[%emt 0:00:05]} 20. c5 {[%emt 0:00:04]} Rcd8 {[%emt 0:09:46]} 21. Qe1 {[%emt 0:04:39]} Rxd1 {[%emt 0:12:17]} 22. Rxd1 {[%emt 0:02:35]} Rd8 {[%emt 0:05:23]} 23. Rxd8+ {[%emt 0:05:01]} Qxd8 {[%emt 0:00:10]} 24. cxb6 {[%emt 0:05:59]} Bxb6 {[%emt 0:00:10]} 25. Na4 {[%emt 0:00:05]} Bc6 {[%emt 0:04:53]} 26. Nxb6 {[%emt 0:01:02]} Qxb6 {[%emt 0:00:05]} 27. Qg1 {[%emt 0:00:21]} Qd8 {[%emt 0:01:23]} 28. Bxa6 {[%emt 0:02:09]} Be8 {[%emt 0:00:05]} 29. Qc1 {[%emt 0:02:39]} Nh5 {[%emt 0:00:44]} 30. g3 {[%emt 0:01:06]} h6 {[%emt 0:00:23]} 31. Kg2 {[%emt 0:00:53]} g5 {[%emt 0:00:05]} 32. Qd2 {[%emt 0:02:49]} Qe7 {[%emt 0:01:56]} 33. Nc5 {[%emt 0:00:15]} Nf6 {[%emt 0:00:45]} 34. a4 {[%emt 0:00:40]} Kg7 {[%emt 0:00:04]} 35. a5 {[%emt 0:00:12]} g4 {[%emt 0:00:58]} 36. Be2 {[%emt 0:01:12]} Bc6 {[%emt 0:00:27]} 37. Qc3 {[%emt 0:02:26]} Qd6 {[%emt 0:00:07]} 38. a6 {[%emt 0:00:41]} gxf3+ {[%emt 0:00:58]} 39. Bxf3 {[%emt 0:00:14]} Ne8 {[%emt 0:01:26]} 40. Nb7 {[%emt 0:07:01]} Qd7 {[%emt 0:01:57]} 41. Na5 {[%emt 0:30:41]} Ba8 {[%emt 0:31:06]} 42. Qxe5+ {[%emt 0:00:21]} f6 {[%emt 0:00:46]} 43. Qc5 {[%emt 0:00:00]} Nc7 {[%emt 0:00:00]} 44. Qa7 {[%emt 0:00:00]} Qd2+ {[%emt 0:00:00]} 45. Kh3 {[%emt 0:00:00]} Qc3 {[%emt 0:00:00]} 46. Qc5 {[%emt 0:00:00]} Qxf3 {[%emt 0:00:00]} 47. Qxc7+ {[%emt 0:00:00]} Kg6 {[%emt 0:00:00]} 48. Qf4 {[%emt 0:00:00]} Qh5+ {[%emt 0:00:00]} 49. Qh4 {[%emt 0:00:00]} Qb5 {[%emt 0:00:00]} 50. Qg4+ {[%emt 0:00:00]} Kf7 {[%emt 0:00:00]} 51. Nb7 {[%emt 0:00:00]} Bxb7 {[%emt 0:00:00]} 52. axb7 {[%emt 0:00:00]} Qxb7 {[%emt 0:00:00]} 53. Qh5+ {[%emt 0:00:00]} Kg7 {[%emt 0:00:00]} 54. e5 {[%emt 0:00:00]} f5 {[%emt 0:00:00]} 55. Qh4 {[%emt 0:00:00]} Kh7 {[%emt 0:00:00]} 56. Qf4 {[%emt 0:00:00]} Qb5 {[%emt 0:00:00]} 57. g4 {[%emt 0:00:00]} Qd3+ {[%emt 0:00:00]} 58. Kh4 {[%emt 0:00:00]} Qd8+ {[%emt 0:00:00]} 59. Kg3 {[%emt 0:00:00]} Qd3+ {[%emt 0:00:00]} 60. Qf3 {[%emt 0:00:00]} Qd4 {[%emt 0:00:00]} 61. gxf5 {[%emt 0:00:00]} Qxe5+ {[%emt 0:00:00]} 62. Kg4 {[%emt 0:00:00]} Qd4+ {[%emt 0:00:00]} 63. Kh3 {[%emt 0:00:00]} exf5 {[%emt 0:00:23]} 64. Qxf5+ {[%emt 0:00:00]} Kh8 {[%emt 0:00:03]} 65. Qc8+ {[%emt 0:00:00]} Kh7 {[%emt 0:00:05]} 66. Qc7+ {[%emt 0:00:00]} Kh8 {[%emt 0:00:02]} 67. Qc5 {[%emt 0:00:00]} Qd3+ {[%emt 0:00:07]} 68. Kg4 {[%emt 0:00:00]} Qe2+ {[%emt 0:00:22]} 69. Kf5 {[%emt 0:00:00]} Qh5+ {[%emt 0:00:38]} 70. Kf6 {[%emt 0:00:00]} Qh4+ {[%emt 0:00:45]} 71. Kf7 {[%emt 0:00:00]} Qf4+ {[%emt 0:00:03]} 72. Ke6 {[%emt 0:00:00]} Qg4+ {[%emt 0:00:27]} 73. Kd6 {[%emt 0:00:00]} Qg6+ {[%emt 0:00:08]} 74. Kc7 {[%emt 0:00:00]} Qf7+ {[%emt 0:00:05]} 75. Kb6 {[%emt 0:00:00]} Qe6+ {[%emt 0:00:05]} 76. Qc6 {[%emt 0:00:00]} Qe3+ {[%emt 0:00:00]} 77. Kb7 {[%emt 0:00:00]} Qe7+ {[%emt 0:00:02]} 78. Kc8 {[%emt 0:00:00]} Qf8+ {[%emt 0:00:03]} 79. Kd7 {[%emt 0:00:00]} Qxb4 {[%emt 0:00:05]} 80. Qxh6+ Kg8 {[%emt 0:00:01]} 81. Qg5+ {[%emt 0:00:00]} Kh8 {[%emt 0:00:01]} 82. h4 {[%emt 0:00:00]} Qd4+ {[%emt 0:00:03]} 83. Ke6 {[%emt 0:00:00]} Qe4+ {[%emt 0:00:01]} 84. Kf6 {[%emt 0:00:00]} Qc6+ {[%emt 0:00:01]} 85. Kf7 {[%emt 0:00:00]} Qd7+ {[%emt 0:00:01]} 86. Kf6 {[%emt 0:00:00]} Qd8+ {[%emt 0:00:01]} 87. Kg6 {[%emt 0:00:00]} Qe8+ {[%emt 0:00:02]} 88. Kh6 {[%emt 0:00:00]} Qe6+ {[%emt 0:00:01]} 89. Kh5 {[%emt 0:00:00]} Qe2+ {[%emt 0:00:01]} 90. Qg4 {[%emt 0:00:00]} Qxg4+ {[%emt 0:00:02]} 1/2-1/2

[Event "Norwegian Team Championship 2019"]
[Site "Drammen"]
[Date "2019.06.01"]
[Round "3.3"]
[White "Getz, Nicolai"]
[Black "Mihajlov, Svetoslav"]
[Result "0-1"]
[ECO "A07"]
[WhiteElo "2380"]
[BlackElo "2161"]
[Annotator "ChessBase"]
[PlyCount "84"]
[EventDate "2019.05.30"]
[EventType "swiss"]
[EventCountry "NOR"]
[SourceTitle "playchess.com"]
[Source "ChessBase"]
[SourceQuality "1"]
[TimeControl "40/5400:1800"]

1. Nf3 {[%emt 0:00:05]} d5 {[%emt 0:00:16]} 2. g3 {[%emt 0:00:06]} Nf6 {[%emt 0:00:52]} 3. Bg2 {[%emt 0:00:10]} c6 {[%emt 0:00:58]} 4. O-O {[%emt 0:00:18]} Bf5 {[%emt 0:00:06]} 5. d3 {[%emt 0:02:43]} h6 {[%emt 0:00:18]} 6. c4 {[%emt 0:04:24]} dxc4 {[%emt 0:06:20]} 7. Ne5 {[%emt 0:06:36]} Nbd7 {[%emt 0:02:14]} 8. Nxc4 {[%emt 0:00:24]} Nb6 {[%emt 0:03:36]} 9. Na5 {[%emt 0:03:33]} Qd7 {[%emt 0:00:41]} 10. Nd2 {[%emt 0:06:34]} Bh3 {[%emt 0:13:13]} 11. Nf3 {[%emt 0:01:49]} Bxg2 {[%emt 0:00:09]} 12. Kxg2 {[%emt 0:00:06]} e6 {[%emt 0:04:46]} 13. e4 {[%emt 0:05:06]} Bb4 {[%emt 0:03:14]} 14. Nb3 {[%emt 0:02:20]} Rd8 {[%emt 0:02:49]} 15. Ne5 {[%emt 0:03:08]} Qc7 {[%emt 0:00:18]} 16. f4 {[%emt 0:02:14]} O-O {[%emt 0:02:01]} 17. Qe2 {[%emt 0:03:20]} Nfd7 {[%emt 0:07:12]} 18. Nf3 {[%emt 0:01:19]} Nc5 {[%emt 0:06:57]} 19. Nbd4 {[%emt 0:02:41]} Nca4 {[%emt 0:03:30]} 20. Be3 {[%emt 0:01:50]} c5 {[%emt 0:09:24]} 21. Nc2 {[%emt 0:02:41]} Ba5 {[%emt 0:00:53]} 22. Na3 {[%emt 0:05:04]} Bb4 {[%emt 0:03:16]} 23. Rac1 {[%emt 0:02:20]} Bxa3 {[%emt 0:02:09]} 24. bxa3 {[%emt 0:00:05]} Qd6 {[%emt 0:00:42]} 25. Rfd1 {[%emt 0:02:57]} Qe7 {[%emt 0:04:35]} 26. Ne5 {[%emt 0:03:37]} Nd7 {[%emt 0:00:17]} 27. Nc4 {[%emt 0:02:31]} b5 {[%emt 0:02:18]} 28. Na5 {[%emt 0:00:35]} Rc8 {[%emt 0:00:12]} 29. Rc2 {[%emt 0:01:11]} Rc7 {[%emt 0:01:29]} 30. g4 {[%emt 0:04:35]} Rfc8 {[%emt 0:01:23]} 31. f5 {[%emt 0:02:22]} exf5 {[%emt 0:01:07]} 32. gxf5 {[%emt 0:00:07]} Ne5 {[%emt 0:00:13]} 33. Bf4 {[%emt 0:01:16]} f6 {[%emt 0:01:08]} 34. Qe3 {[%emt 0:02:20]} a6 {[%emt 0:00:16]} 35. Qg3 {[%emt 0:00:40]} Re8 {[%emt 0:00:24]} 36. Nb3 {[%emt 0:06:33]} Rd7 {[%emt 0:00:02]} 37. Na5 {[%emt 0:01:59]} Nxd3 {[%emt 0:00:06]} 38. e5 {[%emt 0:00:09]} Nxf4+ {[%emt 0:00:08]} 39. Qxf4 {[%emt 0:00:03]} Rxd1 {[%emt 0:00:04]} 40. e6 {[%emt 0:00:05]} Red8 {[%emt 0:00:06]} 41. Nc6 {[%emt 0:02:52]} Qd6 {[%emt 0:04:27]} 42. Qxd6 {[%emt 0:01:39]} R8xd6 {[%emt 0:00:14]} 0-1

[Event "Norwegian Team Championship 2019"]
[Site "Drammen"]
[Date "2019.06.01"]
[Round "3.4"]
[White "Dale, Gunnar Brandshaug"]
[Black "Ogaard, Leif"]
[Result "0-1"]
[ECO "E32"]
[WhiteElo "2003"]
[BlackElo "2385"]
[Annotator "ChessBase"]
[PlyCount "84"]
[EventDate "2019.05.30"]
[EventType "swiss"]
[EventCountry "NOR"]
[SourceTitle "playchess.com"]
[Source "ChessBase"]
[SourceQuality "1"]
[TimeControl "40/5400:1800"]

1. d4 {[%emt 0:00:25]} Nf6 {[%emt 0:00:15]} 2. c4 {[%emt 0:00:05]} e6 {[%emt 0:00:27]} 3. Nc3 {[%emt 0:00:12]} Bb4 {[%emt 0:00:49]} 4. Qc2 {[%emt 0:00:14]} O-O {[%emt 0:00:59]} 5. Nf3 {[%emt 0:00:22]} d6 {[%emt 0:01:22]} 6. Bg5 {[%emt 0:00:43]} Nbd7 {[%emt 0:00:40]} 7. e3 {[%emt 0:03:05]} b6 {[%emt 0:02:14]} 8. Bd3 {[%emt 0:00:26]} Qe8 {[%emt 0:01:24]} 9. O-O {[%emt 0:00:52]} Bxc3 {[%emt 0:00:12]} 10. Qxc3 {[%emt 0:00:57]} Bb7 {[%emt 0:00:21]} 11. Nd2 {[%emt 0:07:38]} e5 {[%emt 0:02:44]} 12. Rae1 {[%emt 0:02:47]} c5 {[%emt 0:12:03]} 13. f4 {[%emt 0:03:40]} e4 {[%emt 0:06:15]} 14. Bb1 {[%emt 0:03:06]} d5 {[%emt 0:07:28]} 15. dxc5 {[%emt 0:04:05]} bxc5 {[%emt 0:03:54]} 16. Bxf6 {[%emt 0:05:50]} Nxf6 {[%emt 0:00:12]} 17. cxd5 {[%emt 0:01:55]} Rd8 {[%emt 0:02:48]} 18. Qxc5 {[%emt 0:02:29]} Ba6 {[%emt 0:24:41]} 19. Rf2 {[%emt 0:01:23]} Rxd5 {[%emt 0:02:51]} 20. Qxa7 {[%emt 0:01:08]} Qb5 {[%emt 0:07:09]} 21. Nb3 {[%emt 0:09:26]} Ng4 {[%emt 0:04:31]} 22. Nd4 {[%emt 0:03:11]} Qb4 {[%emt 0:01:11]} 23. Nc2 {[%emt 0:02:03]} Qd6 {[%emt 0:00:19]} 24. Nd4 {[%emt 0:02:26]} Nxf2 {[%emt 0:00:07]} 25. Kxf2 {[%emt 0:00:04]} Ra5 {[%emt 0:01:27]} 26. Rc1 {[%emt 0:04:47]} Qb4 {[%emt 0:00:31]} 27. Qc7 {[%emt 0:02:14]} Qd2+ {[%emt 0:00:14]} 28. Kg1 {[%emt 0:00:24]} Qxe3+ {[%emt 0:00:07]} 29. Kh1 {[%emt 0:00:04]} Rh5 {[%emt 0:00:32]} 30. Rd1 {[%emt 0:02:09]} g6 {[%emt 0:00:27]} 31. Qd6 {[%emt 0:01:36]} Bd3 {[%emt 0:00:21]} 32. f5 {[%emt 0:01:26]} Bxb1 {[%emt 0:00:14]} 33. Rxb1 {[%emt 0:00:17]} Rc8 {[%emt 0:00:03]} 34. Rf1 {[%emt 0:00:44]} Qd3 {[%emt 0:00:24]} 35. Kg1 {[%emt 0:01:14]} Qe3+ {[%emt 0:00:01]} 36. Kh1 {[%emt 0:00:07]} Qd3 {[%emt 0:00:01]} 37. Kg1 {[%emt 0:00:12]} Qe3+ {[%emt 0:00:02]} 38. Kh1 {[%emt 0:00:07]} Qd3 {[%emt 0:00:01]} 39. Kg1 {[%emt 0:00:09]} e3 {[%emt 0:00:02]} 40. Qd7 {[%emt 0:01:26]} Rf8 {[%emt 0:00:06]} 41. fxg6 {[%emt 0:31:03]} hxg6 {[%emt 0:30:04]} 42. Rxf7 {[%emt 0:00:57]} Qd1+ {[%emt 0:00:13]} 0-1

[Event "Norwegian Team Championship 2019"]
[Site "Drammen"]
[Date "2019.06.01"]
[Round "3.5"]
[White "Haug, Johannes"]
[Black "Urkedal, Frode Olav Olsen"]
[Result "0-1"]
[ECO "A47"]
[WhiteElo "2438"]
[BlackElo "2525"]
[Annotator "ChessBase"]
[PlyCount "46"]
[EventDate "2019.05.30"]
[EventType "swiss"]
[EventCountry "NOR"]
[SourceTitle "playchess.com"]
[Source "ChessBase"]
[SourceQuality "1"]
[TimeControl "40/5400:1800"]

1. d4 {[%emt 0:00:02]} Nf6 {[%emt 0:00:03]} 2. Nf3 {[%emt 0:00:06]} b6 {[%emt 0:00:09]} 3. e3 {[%emt 0:00:25]} Bb7 {[%emt 0:00:12]} 4. Bd3 {[%emt 0:01:09]} g6 {[%emt 0:00:06]} 5. O-O {[%emt 0:01:37]} Bg7 {[%emt 0:00:23]} 6. Re1 {[%emt 0:02:05]} d5 {[%emt 0:00:19]} 7. c4 {[%emt 0:03:47]} e6 {[%emt 0:07:16]} 8. b4 {[%emt 0:12:00]} O-O {[%emt 0:06:34]} 9. Nbd2 {[%emt 0:03:07]} Nbd7 {[%emt 0:02:37]} 10. cxd5 {[%emt 0:12:38]} Nxd5 {[%emt 0:03:21]} 11. Qb3 {[%emt 0:04:42]} c5 {[%emt 0:03:26]} 12. bxc5 {[%emt 0:00:54]} Nxc5 {[%emt 0:00:09]} 13. Qa3 {[%emt 0:04:58]} Nxd3 {[%emt 0:03:56]} 14. Qxd3 {[%emt 0:00:18]} Rc8 {[%emt 0:00:25]} 15. Rb1 {[%emt 0:07:18]} Rc3 {[%emt 0:02:25]} 16. Qb5 {[%emt 0:01:07]} a6 {[%emt 0:15:50]} 17. Qb2 {[%emt 0:07:13]} Qc7 {[%emt 0:00:44]} 18. Qa1 {[%emt 0:11:47]} Rc8 {[%emt 0:03:12]} 19. Ne4 {[%emt 0:02:01]} Rc2 {[%emt 0:00:31]} 20. Ba3 {[%emt 0:01:10]} Nb4 {[%emt 0:06:23]} 21. Bxb4 {[%emt 0:02:06]} Bxe4 {[%emt 0:00:10]} 22. Ba3 {[%emt 0:01:19]} Bxf3 {[%emt 0:01:29]} 23. gxf3 {[%emt 0:00:01]} Rxf2 {[%emt 0:00:22]} 0-1

[Event "Norwegian Team Championship 2019"]
[Site "Drammen"]
[Date "2019.06.01"]
[Round "3.6"]
[White "Hansen, Torbjorn Ringdal"]
[Black "Tryggestad, Andreas Garberg"]
[Result "1/2-1/2"]
[ECO "B48"]
[WhiteElo "2434"]
[BlackElo "2324"]
[Annotator "ChessBase"]
[PlyCount "109"]
[EventDate "2019.05.30"]
[EventType "swiss"]
[EventCountry "NOR"]
[SourceTitle "playchess.com"]
[Source "ChessBase"]
[SourceQuality "1"]
[TimeControl "40/5400:1800"]

1. e4 {[%emt 0:00:03]} c5 {[%emt 0:00:03]} 2. Nf3 {[%emt 0:00:05]} e6 {[%emt 0:00:03]} 3. d4 {[%emt 0:00:37]} cxd4 {[%emt 0:00:06]} 4. Nxd4 {[%emt 0:00:05]} Nc6 {[%emt 0:00:07]} 5. Nc3 {[%emt 0:00:19]} Qc7 {[%emt 0:00:05]} 6. Be3 {[%emt 0:00:21]} Nf6 {[%emt 0:00:10]} 7. Bd3 {[%emt 0:01:10]} Nxd4 {[%emt 0:01:17]} 8. Bxd4 {[%emt 0:00:12]} e5 {[%emt 0:00:03]} 9. Be3 {[%emt 0:01:28]} Bb4 {[%emt 0:00:11]} 10. Bd2 {[%emt 0:02:25]} O-O {[%emt 0:01:53]} 11. O-O {[%emt 0:00:16]} Bxc3 {[%emt 0:04:13]} 12. Bxc3 {[%emt 0:00:09]} d6 {[%emt 0:00:29]} 13. f4 {[%emt 0:07:20]} Ng4 {[%emt 0:02:34]} 14. Qe1 {[%emt 0:09:35]} exf4 {[%emt 0:01:20]} 15. Rxf4 {[%emt 0:00:17]} Ne5 {[%emt 0:00:43]} 16. Qg3 {[%emt 0:00:55]} Be6 {[%emt 0:00:14]} 17. Raf1 {[%emt 0:00:28]} Rac8 {[%emt 0:01:50]} 18. a3 {[%emt 0:02:32]} Kh8 {[%emt 0:07:06]} 19. Rh4 {[%emt 0:05:33]} f6 {[%emt 0:13:08]} 20. Rhf4 {[%emt 0:00:31]} a6 {[%emt 0:04:35]} 21. h3 {[%emt 0:00:47]} Qe7 {[%emt 0:04:59]} 22. Qe3 {[%emt 0:02:09]} Kg8 {[%emt 0:02:28]} 23. R4f2 {[%emt 0:01:11]} Qc7 {[%emt 0:00:46]} 24. Rd1 {[%emt 0:01:28]} Rfe8 {[%emt 0:05:44]} 25. Rfd2 {[%emt 0:01:40]} Qc5 {[%emt 0:02:16]} 26. Bd4 {[%emt 0:03:16]} Qc6 {[%emt 0:00:02]} 27. Bc3 {[%emt 0:05:43]} Qc5 {[%emt 0:00:06]} 28. Qf2 {[%emt 0:02:27]} Qc6 {[%emt 0:01:15]} 29. Bf1 {[%emt 0:03:01]} Nf7 {[%emt 0:02:16]} 30. Rd4 {[%emt 0:01:12]} b5 {[%emt 0:07:54]} 31. Be2 {[%emt 0:00:57]} Qc5 {[%emt 0:02:33]} 32. a4 {[%emt 0:02:29]} Rb8 {[%emt 0:01:44]} 33. axb5 {[%emt 0:01:12]} axb5 {[%emt 0:00:00]} 34. Rb4 {[%emt 0:02:10]} Bd7 {[%emt 0:00:28]} 35. Rd5 {[%emt 0:04:01]} Qxf2+ {[%emt 0:06:34]} 36. Kxf2 {[%emt 0:00:12]} Bc6 {[%emt 0:00:03]} 37. Bxb5 {[%emt 0:04:08]} Bxd5 {[%emt 0:08:47]} 38. Bxe8 {[%emt 0:00:23]} Rxb4 {[%emt 0:00:02]} 39. Bxb4 {[%emt 0:00:21]} Bxe4 {[%emt 0:00:01]} 40. c3 {[%emt 0:04:19]} Kf8 {[%emt 0:01:36]} 41. Bxf7 {[%emt 0:33:44]} Kxf7 {[%emt 0:05:57]} 42. Bxd6 {[%emt 0:00:00]} Ke6 {[%emt 0:00:09]} 43. Bf8 {[%emt 0:00:00]} g6 {[%emt 0:01:24]} 44. g3 {[%emt 0:00:00]} Kd5 {[%emt 0:00:17]} 45. Be7 {[%emt 0:00:00]} Kc4 {[%emt 0:03:27]} 46. Bxf6 {[%emt 0:00:00]} Kb3 {[%emt 0:00:08]} 47. Ke3 {[%emt 0:00:00]} Bg2 {[%emt 0:00:22]} 48. Kd4 {[%emt 0:00:00]} Kxb2 {[%emt 0:00:18]} 49. h4 {[%emt 0:00:00]} Kb3 {[%emt 0:00:36]} 50. Bg5 {[%emt 0:00:00]} h5 {[%emt 0:01:13]} 51. c4 {[%emt 0:00:00]} Bf1 {[%emt 0:01:42]} 52. c5 {[%emt 0:00:00]} Bg2 {[%emt 0:00:04]} 53. Be7 {[%emt 0:00:00]} Ka4 {[%emt 0:00:45]} 54. Ke5 {[%emt 0:00:00]} Kb5 {[%emt 0:00:26]} 55. Bf8 {[%emt 0:00:00]} 1/2-1/2

[Event "Norwegian Team Championship 2019"]
[Site "Drammen"]
[Date "2019.06.01"]
[Round "3.7"]
[White "Nordquelle, Daniel"]
[Black "Risting, Eivind Olav"]
[Result "1-0"]
[ECO "B12"]
[WhiteElo "2080"]
[BlackElo "2357"]
[Annotator "ChessBase"]
[PlyCount "67"]
[EventDate "2019.05.30"]
[EventType "swiss"]
[EventCountry "NOR"]
[SourceTitle "playchess.com"]
[Source "ChessBase"]
[SourceQuality "1"]
[TimeControl "40/5400:1800"]

1. e4 {[%emt 0:00:02]} c6 {[%emt 0:00:22]} 2. d4 {[%emt 0:01:11]} d5 {[%emt 0:00:06]} 3. e5 {[%emt 0:00:04]} Bf5 {[%emt 0:00:10]} 4. h4 {[%emt 0:00:13]} c5 {[%emt 0:00:52]} 5. dxc5 {[%emt 0:00:24]} Nc6 {[%emt 0:00:05]} 6. Bb5 {[%emt 0:01:23]} Bd7 {[%emt 0:00:16]} 7. Bxc6 {[%emt 0:07:03]} bxc6 {[%emt 0:00:41]} 8. Be3 {[%emt 0:01:18]} e6 {[%emt 0:08:10]} 9. Nf3 {[%emt 0:04:09]} Nh6 {[%emt 0:04:45]} 10. c3 {[%emt 0:11:03]} a5 {[%emt 0:06:13]} 11. Bxh6 {[%emt 0:20:43]} gxh6 {[%emt 0:00:07]} 12. b4 {[%emt 0:00:07]} Bg7 {[%emt 0:05:04]} 13. O-O {[%emt 0:05:08]} O-O {[%emt 0:01:23]} 14. Re1 {[%emt 0:03:28]} f6 {[%emt 0:16:10]} 15. Qd4 {[%emt 0:02:01]} fxe5 {[%emt 0:12:07]} 16. Nxe5 {[%emt 0:00:07]} Rf5 {[%emt 0:00:55]} 17. g3 {[%emt 0:06:03]} Kh8 {[%emt 0:12:56]} 18. a4 {[%emt 0:02:16]} Qc7 {[%emt 0:06:24]} 19. f4 {[%emt 0:00:19]} Rg8 {[%emt 0:00:45]} 20. Kh2 {[%emt 0:00:39]} Be8 {[%emt 0:01:15]} 21. Ra2 {[%emt 0:02:03]} Bf6 {[%emt 0:00:19]} 22. Rg2 {[%emt 0:01:15]} Qg7 {[%emt 0:01:36]} 23. Rgg1 {[%emt 0:02:39]} Rh5 {[%emt 0:00:37]} 24. Qf2 {[%emt 0:01:17]} Qe7 {[%emt 0:04:05]} 25. Rg2 {[%emt 0:03:17]} Qf8 {[%emt 0:01:06]} 26. Nd2 {[%emt 0:00:32]} Rf5 {[%emt 0:01:11]} 27. Ndf3 {[%emt 0:00:42]} Be7 {[%emt 0:00:31]} 28. Nd4 {[%emt 0:00:51]} axb4 {[%emt 0:00:21]} 29. Nxf5 {[%emt 0:00:51]} Qxf5 {[%emt 0:00:02]} 30. cxb4 {[%emt 0:00:08]} Bf6 {[%emt 0:00:24]} 31. g4 {[%emt 0:02:17]} Rxg4 {[%emt 0:00:17]} 32. Nxg4 {[%emt 0:00:14]} Bg7 {[%emt 0:00:12]} 33. Ne5 {[%emt 0:00:28]} d4 {[%emt 0:00:08]} 34. Reg1 {[%emt 0:00:26]} 1-0